bitfinex/quotes_SOLUSD_20240816
["timestamp","ask_amount","ask_price","bid_price","bid_amount"]
[1723848582537,13.73,140.0,139.98,25.0031]
[1723848586948,14.61727233,140.03,139.99,7.1432]
[1723848586949,13.73,140.02,139.99,7.1432]
[1723848588326,13.73,140.02,139.98,25.0031]
[1723848588945,13.73,140.02,139.99,7.1433]
[1723848591425,13.73,140.02,139.98,25.0032]
[1723848592331,20.8718,140.02,139.98,25.0032]
[1723848596867,20.8718,140.02,139.98,17.8595]
[1723848600526,7.47577233,140.03,139.99,7.1431]
[1723848600838,20.8709,140.04,139.99,7.1431]
[1723848601165,20.0,140.03,139.99,7.1431]
[1723848605136,20.8685,140.09,140.05,7.1402]
[1723848605372,13.73,140.09,140.05,7.1402]
[1723848608888,7.1378,140.1,140.06,7.1397]
[1723848608889,13.73,140.1,140.06,7.1397]
[1723848609096,20.0,140.09,140.05,7.1401]
[1723848610470,13.73,140.06,140.04,24.9921]
[1723848612733,13.73,140.08,140.05,7.1403]
[1723848615300,13.73,140.08,140.04,24.9921]
[1723848619199,20.8688,140.08,140.03,7.1412]
[1723848620086,20.8688,140.08,140.04,7.1407]
[1723848623986,20.0,140.09,140.03,17.853]
[1723848624185,13.73,140.08,140.05,7.1401]
[1723848624387,13.73,140.08,140.04,7.1404]
[1723848630802,20.8688,140.08,140.04,7.1404]
[1723848643055,13.73,140.08,140.05,7.1402]
[1723848648131,13.73,140.08,140.04,7.1406]
[1723848648760,20.8688,140.08,140.04,7.1406]
[1723848653363,13.73,140.06,140.03,24.9941]
[1723848656555,13.73,140.06,140.03,17.853]
[1723848660695,13.73,140.06,140.03,24.9942]
[1723848662570,13.73,140.06,140.04,7.1407]
[1723848672906,7.1389,140.08,140.04,7.1407]
[1723848673110,20.8689,140.08,140.04,7.1407]
[1723848679338,20.8689,140.08,140.03,24.9941]
[1723848679497,20.8701,140.06,140.01,14.3126814]
[1723848679705,20.8701,140.06,140.02,7.1418]
[1723848680513,13.73,140.06,140.02,7.1418]
[1723848680922,22.7381,140.08,140.03,7.1412]
[1723848681126,13.73,140.06,140.03,7.1412]
[1723848688331,27.1393,140.07,140.03,7.1412]
[1723848688530,13.73,140.06,140.03,7.1412]
[1723848688738,13.73,140.06,140.02,24.9957]
[1723848693859,13.73,140.04,140.0,21.456062]
[1723848694066,13.73,140.02,139.99,25.0011]
[1723848694227,20.8718,140.02,139.98,7.1437]
[1723848694649,13.73,140.02,139.98,7.1437]
[1723848695455,20.872,140.02,139.98,7.1437]
[1723848696341,13.73,140.0,139.98,7.1437]
[1723848697546,16.3222,140.04,139.98,17.8592]
[1723848697750,7.47488953,140.06,140.0,17.8569]
[1723848697963,7.47488953,140.06,140.04,7.1406]
[1723848698135,13.73,140.08,139.99,13.73]
[1723848698335,20.8688,140.08,140.04,17.8516]
[1723848699245,20.0,140.07,140.04,17.8516]
[1723848701778,13.73,140.06,140.02,7.1417]
[1723848702076,20.8698,140.06,140.02,7.1417]
[1723848702239,13.73,140.06,140.02,7.1417]
[1723848704049,13.73,140.06,140.03,7.1413]
[1723848705852,20.0,140.07,140.03,7.1413]
[1723848706067,33.73,140.07,140.03,7.1413]
[1723848710964,20.0,140.07,140.03,7.1413]
[1723848711378,33.73,140.07,140.03,7.1413]
[1723848712372,40.8693,140.07,140.03,7.1413]
[1723848712544,40.8693,140.07,140.02,7.1416]
[1723848714738,40.8693,140.07,140.03,7.141]
[1723848730214,33.73,140.07,140.04,7.1408]
[1723848730426,7.47172448,140.09,140.08,7.1387]
[1723848730705,30.0522,140.13,140.09,7.1382]
[1723848730926,30.0522,140.13,140.07,17.848]
[1723848730927,20.8665,140.13,140.07,17.848]
[1723848731070,20.8665,140.13,140.08,7.1386]
[1723848731304,7.46831707,140.15,140.07,42.8543]
[1723848731510,16.411,140.18,140.11,17.8426]
[1723848731511,7.1343,140.17,140.11,17.8426]
[1723848731827,13.73,140.16,140.12,7.1365]
[1723848732521,13.73,140.16,140.13,7.1362]
[1723848733026,13.73,140.16,140.14,7.1356]
[1723848733645,31.01124683,140.18,140.14,7.1356]
[1723848733937,13.73,140.17,140.14,7.1356]
[1723848734137,13.73,140.15,140.1,17.8437]
[1723848734341,20.8662,140.13,140.09,7.1381]
[1723848737947,13.73,140.13,140.09,7.1381]
[1723848740130,13.73,140.11,140.07,17.8473]
[1723848741251,13.73,140.09,140.04,24.9916]
[1723848741429,13.73,140.07,140.04,24.9916]
[1723848741609,13.73,140.07,140.05,7.1401]
[1723848742027,13.73,140.09,140.06,7.1397]
[1723848743245,7.47021467,140.1,140.05,35.6996]
[1723848743439,20.8657,140.14,140.1,7.1376]
[1723848744841,13.73,140.14,140.1,7.1376]
[1723848745548,13.73,140.14,140.09,7.1382]
[1723848745549,7.1362,140.13,140.09,7.1382]
[1723848745923,20.8659,140.14,140.09,7.1382]
[1723848747154,7.1359,140.14,140.09,7.1382]
[1723848747345,13.73,140.13,140.09,7.1382]
[1723848748226,13.73,140.13,140.1,7.1377]
[1723848765362,13.73,140.11,140.08,17.8464]
[1723848767103,13.73,140.11,140.08,24.985]
[1723848771385,13.73,140.11,140.09,7.1381]
[1723848771593,20.8664,140.13,140.09,7.1381]
[1723848772628,13.73,140.13,140.09,7.1381]
[1723848776295,7.46210878,140.14,140.1,7.1373]
[1723848776519,13.73,140.13,140.1,7.1373]
[1723848781855,7.1367,140.12,140.08,24.985]
[1723848782033,13.73,140.13,140.1,7.1377]
[1723848782230,13.73,140.11,140.05,39.7613]
[1723848782539,13.73,140.09,140.05,39.7613]
[1723848782841,13.73,140.09,140.06,7.1396]
[1723848790924,7.1373,140.11,140.07,7.1391]
[1723848791266,13.73,140.11,140.08,7.1386]
[1723848791479,14.59961142,140.12,140.09,17.8453]
[1723848791480,7.46281142,140.12,140.09,17.8453]
[1723848791770,17.8337,140.19,140.09,17.8453]
[1723848791771,13.73,140.15,140.11,7.1372]
[1723848792361,7.1348,140.16,140.12,7.1365]
[1723848792362,7.1347,140.16,140.12,7.1365]
[1723848792568,7.1347,140.16,140.11,17.8425]
[1723848792569,13.73,140.16,140.11,17.8425]
[1723848792777,13.73,140.16,140.13,7.1361]
[1723848794144,13.73,140.16,140.12,7.1363]
[1723848794369,7.1344,140.17,140.12,7.1363]
[1723848794370,13.73,140.14,140.12,7.1363]
[1723848796444,13.73,140.14,140.11,17.8425]
[1723848796650,13.73,140.12,140.11,17.8425]
[1723848798157,13.73,140.12,140.11,24.9797]
[1723848799780,13.73,140.14,140.11,24.9797]
[1723848803263,13.73,140.12,140.11,24.9797]
[1723848803788,13.73,140.12,140.11,17.8425]
[1723848805061,13.73,140.14,140.11,17.8425]
[1723848805887,13.73,140.14,140.11,24.9797]
[1723848807206,14.59538903,140.16,140.11,24.9797]
[1723848807385,13.73,140.14,140.11,24.9797]
[1723848809796,13.73,140.14,140.11,17.8425]
[1723848810166,13.73,140.14,140.11,24.9796]
[1723848810568,13.73,140.12,140.08,17.8462]
[1723848810803,7.1366,140.13,140.08,17.8462]
[1723848810804,13.73,140.1,140.08,17.8462]
[1723848812089,13.73,140.1,140.09,7.1382]
[1723848813400,13.73,140.1,140.08,24.9848]
[1723848818282,13.73,140.1,140.08,17.8462]
[1723848818479,13.73,140.1,140.07,7.1391]
[1723848820219,20.8679,140.1,140.06,7.1397]
[1723848820514,13.73,140.08,140.06,7.1397]
[1723848821418,13.73,140.08,140.07,7.1392]
[1723848821657,13.73,140.1,140.07,7.1392]
[1723848822903,7.4568823,140.13,140.07,17.8477]
[1723848823227,20.0,140.12,140.07,17.8477]
[1723848824027,33.73,140.12,140.07,17.8477]
[1723848824231,33.73,140.12,140.09,7.1382]
[1723848824533,13.73,140.1,140.07,17.8477]
[1723848825137,13.73,140.1,140.07,24.9866]
[1723848826548,13.73,140.1,140.08,7.1386]
[1723848826729,7.4568823,140.13,140.09,17.8454]
[1723848826920,21.1868823,140.13,140.1,7.1373]
[1723848830349,13.73,140.11,140.09,24.9835]
[1723848831936,13.73,140.11,140.08,7.1386]
[1723848833849,13.73,140.11,140.07,7.1391]
[1723848834246,20.8672,140.11,140.07,7.1391]
[1723848834946,13.73,140.11,140.07,7.1391]
[1723848836054,20.8672,140.11,140.07,7.1391]
[1723848840970,13.73,140.09,140.07,7.1391]
[1723848841175,13.73,140.09,140.06,17.8485]
[1723848841341,13.73,140.07,140.06,17.8485]
[1723848847743,14.59696321,140.11,140.07,7.1389]
[1723848848043,28.32696321,140.11,140.07,7.1389]
[1723848851475,13.73,140.09,140.07,7.1389]
[1723848851675,13.73,140.09,140.06,24.9881]
[1723848852377,13.73,140.07,140.04,7.1407]
[1723848852749,13.73,140.07,140.05,7.1401]
[1723848854047,13.73,140.07,140.03,17.8531]
[1723848854250,13.73,140.05,140.03,24.9939]
[1723848857886,13.73,140.05,140.01,6.6382]
[1723848858050,13.73,140.03,140.01,7.142]
[1723848859101,13.73,140.03,140.02,7.1418]
[1723848864556,13.73,140.03,140.0,37.8562]
[1723848864557,13.73,140.03,140.01,7.1422]
[1723848865188,13.73,140.03,140.02,7.1418]
[1723848871085,13.73,140.03,140.01,7.1421]
[1723848871412,20.8716,140.03,140.0,20.0]
[1723848871566,13.73,140.01,140.0,20.0]
[1723848874202,20.8723,140.01,140.0,20.0]
[1723848874389,7.1436,139.99,139.95,7.1452]
[1723848874709,13.73,139.98,139.95,7.1452]
[1723848887814,13.73,139.98,139.96,7.1448]
[1723848888012,7.46275312,139.99,139.96,7.1448]
[1723848888013,7.46275312,139.99,139.97,7.1443]
[1723848888318,13.73,140.0,139.98,7.1438]
[1723848889709,13.73,140.0,139.97,7.1441]
[1723848890227,20.874,139.98,139.94,8.0239292]
[1723848890529,13.73,139.96,139.94,8.0239292]
[1723848892629,6.0231,140.02,139.95,17.8631]
[1723848892806,13.73,140.0,139.97,7.144]
[1723848893619,13.73,140.0,139.96,7.1444]
[1723848893620,20.8729,140.0,139.96,7.1444]
[1723848897505,7.1431,140.0,139.96,7.1445]
[1723848897802,13.73,139.99,139.96,7.1445]
[1723848900131,27.1424,140.01,139.97,7.1442]
[1723848900346,13.73,140.0,139.97,7.1442]
[1723848901215,20.8728,140.0,139.96,7.1447]
[1723848901908,13.73,139.98,139.95,25.0083]
[1723848902316,20.8738,139.98,139.95,17.8631]
[1723848904144,13.73,139.96,139.94,8.0241292]
[1723848904842,13.73,139.96,139.94,0.8784292]
[1723848905252,7.45790482,139.99,139.94,0.8784292]
[1723848905433,13.73,139.96,139.94,0.8784292]
[1723848906106,80.1662,139.95,139.89,25.0189]
[1723848906317,13.73,139.9,139.88,7.1489]
[1723848906534,13.73,139.9,139.87,7.1493]
[1723848907918,13.73,139.9,139.88,7.1486]
[1723848908334,20.8781,139.9,139.85,7.1503]
[1723848908513,13.73,139.87,139.85,7.1503]
[1723848909141,13.73,139.87,139.86,7.15]
[1723848909535,13.73,139.87,139.85,7.1503]
[1723848909847,13.73,139.87,139.84,7.1509]
[1723848910239,13.73,139.89,139.85,7.1505]
[1723848910632,20.8784,139.89,139.85,7.1505]
[1723848910817,13.73,139.87,139.84,7.1507]
[1723848911944,13.73,139.87,139.83,17.8782]
[1723848911945,13.73,139.87,139.83,25.0296]
[1723848912620,13.73,139.85,139.81,7.1521]
[1723848913247,13.73,139.85,139.83,7.1514]
[1723848913413,7.1493,139.88,139.83,7.1514]
[1723848913611,13.73,139.86,139.83,7.1514]
[1723848913811,13.73,139.86,139.82,25.0314]
[1723848914231,13.73,139.84,139.82,25.0314]
[1723848914622,13.73,139.86,139.82,25.0314]
[1723848915231,13.73,139.87,139.83,7.1511]
[1723848915637,20.8795,139.87,139.83,7.1511]
[1723848916421,13.73,139.87,139.82,17.8796]
[1723848916616,13.73,139.87,139.84,7.1506]
[1723848917027,13.73,139.87,139.85,7.1504]
[1723848920534,21.1912214,139.88,139.86,7.1498]
[1723848920741,21.1912214,139.88,139.84,17.8772]
[1723848920742,21.1912214,139.88,139.85,7.1503]
[1723848921056,13.73,139.86,139.84,17.8772]
[1723848921560,20.88,139.86,139.82,7.1519]
[1723848921762,20.88,139.86,139.81,25.0328]
[1723848922163,20.88,139.86,139.82,7.1519]
[1723848923468,13.73,139.86,139.82,7.1519]
[1723848925753,14.6103214,139.88,139.83,7.1511]
[1723848926063,13.73,139.86,139.83,7.1511]
[1723848930867,20.88,139.86,139.82,7.1518]
[1723848932751,13.73,139.86,139.82,7.1518]
[1723848933063,13.73,139.86,139.83,7.1515]
[1723848933878,13.73,139.86,139.82,7.1518]
[1723848935485,7.1496,139.87,139.82,7.1518]
[1723848935900,13.73,139.85,139.82,7.1518]
[1723848939564,7.4612214,139.88,139.8,36.6419292]
[1723848939772,7.4612214,139.88,139.81,45.0]
[1723848939971,13.73,139.89,139.85,25.0263]
[1723848940999,13.73,139.89,139.86,7.1499]
[1723848941367,22.3144,139.9,139.86,7.1499]
[1723848941571,33.73,139.89,139.86,7.1499]
[1723848941778,7.45998415,139.92,139.89,7.1483]
[1723848942284,21.18998415,139.92,139.88,7.1488]
[1723848943179,21.18998415,139.92,139.89,7.1484]
[1723848945002,7.45998415,139.92,139.89,7.1484]
[1723848945305,13.73,139.91,139.89,7.1484]
[1723848946869,13.73,139.91,139.87,17.8734]
[1723848947093,13.73,139.89,139.87,17.8734]
[1723848947599,13.73,139.89,139.87,25.0225]
[1723848950989,13.73,139.89,139.84,17.8765]
[1723848951190,13.73,139.87,139.84,17.8765]
[1723848952098,13.73,139.87,139.85,7.1503]
[1723848958220,13.73,139.87,139.84,25.0274]
[1723848959515,13.73,139.85,139.84,17.8765]
[1723848959819,13.73,139.85,139.81,17.8812]
[1723848960619,13.73,139.85,139.83,7.1512]
[1723848962719,13.73,139.88,139.85,7.1504]
[1723848962932,13.73,139.88,139.85,17.8761]
[1723848963228,7.46133448,139.91,139.85,17.8761]
[1723848963229,13.73,139.9,139.85,17.8761]
[1723848964251,7.46133448,139.91,139.87,17.8732]
[1723848964465,7.46133448,139.91,139.89,7.1483]
[1723848964757,7.46133448,139.91,139.88,7.1488]
[1723848966740,13.73,139.92,139.88,7.1488]
[1723848970555,13.73,139.92,139.89,7.1484]
[1723848972137,13.73,139.92,139.9,7.1478]
[1723848973139,21.18916102,139.94,139.91,7.1474]
[1723848978144,21.18916102,139.94,139.92,7.1468]
[1723848978346,7.45916102,139.94,139.92,7.1468]
[1723848978548,7.45916102,139.94,139.93,7.1464]
[1723848979936,13.73,139.98,139.95,7.1453]
[1723848984082,13.73,139.98,139.94,25.0102]
[1723848984266,20.8738,139.98,139.94,25.0102]
[1723848984574,13.73,139.96,139.94,25.0102]
[1723848989497,13.73,139.97,139.95,7.1454]
[1723848989676,13.73,139.97,139.94,25.0102]
[1723848993005,24.02669999,140.0,139.94,17.8645]
[1723848993176,33.73,139.99,139.96,7.1448]
[1723848993375,33.73,139.99,139.94,17.8645]
[1723848993590,40.8735,139.99,139.95,7.1452]
[1723848993795,13.73,139.98,139.95,7.1452]
[1723848994180,13.73,139.98,139.94,17.8645]
[1723848994181,20.874,139.98,139.94,25.0103]
[1723848994605,27.1434,139.99,139.95,7.145]
[1723848994803,13.73,139.98,139.95,7.145]
[1723848995424,13.73,139.98,139.96,17.862]
[1723848996815,20.0,139.99,139.96,17.862]
[1723848996990,13.73,139.97,139.96,17.862]
[1723848997917,13.73,139.97,139.95,7.1452]
[1723849002043,13.73,139.97,139.94,7.1457]
[1723849009731,13.73,139.97,139.95,7.1453]
[1723849010233,13.73,139.97,139.94,7.1457]
[1723849012944,13.73,139.95,139.93,17.865]
[1723849013541,13.73,139.95,139.93,25.0112]
[1723849017227,13.73,139.95,139.93,17.865]
[1723849025346,20.8745,139.97,139.93,25.0114]
[1723849025553,36.3775417,139.98,139.93,17.865]
[1723849025743,20.0,139.97,139.93,17.865]
[1723849026355,20.0,139.97,139.94,7.1458]
[1723849028541,20.0,139.97,139.93,25.0112]
[1723849030066,20.0,139.97,139.94,7.1458]
[1723849030569,13.73,139.96,139.93,25.011]
[1723849038674,20.875,139.96,139.93,17.865]
[1723849038870,13.73,139.96,139.93,25.0113]
[1723849051207,20.8749,139.96,139.93,17.865]
[1723849051447,13.73,139.94,139.9,17.8688]
[1723849051652,13.73,139.91,139.87,14.32634367]
[1723849051941,13.73,139.91,139.89,7.1484]
[1723849059035,20.8767,139.93,139.89,7.1484]
[1723849060926,13.73,139.93,139.9,7.1477]
[1723849062313,14.60549625,139.94,139.9,7.1477]
[1723849062314,7.45959625,139.94,139.93,7.1464]
[1723849062545,36.0714,139.98,139.94,7.1458]
[1723849063738,20.0,139.97,139.94,7.1458]
[1723849064312,13.73,139.96,139.93,25.0119]
[1723849066519,20.0,139.97,139.95,7.1453]
[1723849066732,13.73,139.98,139.95,7.1453]
[1723849072550,13.73,139.96,139.94,7.1457]
[1723849077178,13.73,139.96,139.93,25.012]
[1723849077354,13.73,139.96,139.93,17.8657]
[1723849078180,20.8749,139.96,139.93,17.8657]
[1723849078561,13.73,139.94,139.92,7.1466]
[1723849078875,13.73,139.94,139.9,17.8691]
[1723849079053,13.73,139.94,139.91,7.147]
[1723849080149,13.73,139.94,139.9,17.8691]
[1723849080370,13.73,139.92,139.9,17.8691]
[1723849084193,7.1464,139.93,139.9,17.8691]
[1723849084506,13.73,139.92,139.9,17.8691]
[1723849086671,13.73,139.92,139.87,17.8728]
[1723849087005,15.5758,139.93,139.87,17.8728]
[1723849087006,13.73,139.9,139.87,17.8728]
[1723849088306,20.8779,139.9,139.87,17.8728]
[1723849090293,13.73,139.9,139.87,25.0222]
[1723849091937,20.8771,139.92,139.88,7.1489]
[1723849092711,13.73,139.92,139.89,7.1482]
[1723849093114,20.877,139.92,139.88,7.1487]
[1723849093305,13.73,139.9,139.88,7.1487]
[1723849094399,7.45906096,139.94,139.9,17.8694]
[1723849094594,7.45906096,139.94,139.93,7.1464]
[1723849094832,20.874,139.98,139.94,7.1458]
[1723849096527,13.73,139.98,139.94,7.1458]
[1723849096937,20.8739,139.98,139.94,7.1458]
[1723849100412,13.73,139.98,139.94,7.1458]
[1723849101838,21.18746123,139.99,139.95,8.57395232]
[1723849102245,21.18746123,139.99,139.95,7.145]
[1723849104042,13.73,139.97,139.95,7.145]
[1723849104814,13.73,139.97,139.94,25.0102]
[1723849111563,13.73,139.98,139.95,1.42901397]
[1723849113050,13.73,139.98,139.95,8.57421397]
[1723849116247,7.1438,139.98,139.94,25.0101]
[1723849116569,13.73,139.96,139.94,25.0101]
[1723849117659,14.60096123,139.99,139.95,7.1454]
[1723849117859,13.73,139.97,139.95,7.1454]
[1723849118974,20.8747,139.97,139.93,7.1461]
[1723849119153,13.73,139.95,139.93,7.1461]
[1723849134788,13.73,139.97,139.94,7.1459]
[1723849135170,14.60126123,139.99,139.95,1.42889478]
[1723849135477,33.73,139.98,139.95,1.42889478]
[1723849135990,33.73,139.98,139.94,7.1459]
[1723849139110,40.8739,139.98,139.94,7.1459]
[1723849141826,14.60096123,139.99,139.95,7.1454]
[1723849141996,13.73,139.98,139.95,7.1454]
[1723849149819,14.60096123,139.99,139.95,7.1454]
[1723849150117,13.73,139.97,139.95,7.1454]
[1723849151705,13.73,139.98,139.95,7.1454]
[1723849154121,13.73,139.96,139.93,17.8658]
[1723849154738,13.73,139.96,139.93,25.0119]
[1723849171371,14.62486337,139.97,139.93,25.0119]
[1723849171577,21.21006337,139.97,139.94,7.1455]
[1723849183216,13.73,139.97,139.94,7.1455]
[1723849191029,13.73,139.97,139.9,42.9094]
[1723849191030,13.73,139.95,139.92,7.1464]
[1723849191203,13.73,139.95,139.89,21.3706]
[1723849191402,13.73,139.95,139.9,59.32336645]
[1723849192116,13.73,139.95,139.93,7.1463]
[1723849193894,7.1445,139.97,139.93,7.1463]
[1723849193895,20.8745,139.97,139.93,7.1463]
[1723849195004,13.73,139.97,139.94,8.57472584]
[1723849195798,13.73,139.97,139.94,7.1457]
[1723849205816,14.62315576,139.98,139.94,7.1457]
[1723849206042,28.35315576,139.98,139.94,7.1457]
[1723849207242,7.47925576,139.98,139.93,23.0726]
[1723849207449,7.47925576,139.98,139.97,7.1443]
[1723849207653,13.73,140.01,139.98,7.1437]
[1723849209239,7.1418,140.02,139.98,7.1437]
[1723849209443,13.73,140.01,139.98,7.1437]
[1723849209830,7.1414,140.03,139.99,7.1433]
[1723849210040,13.73,140.02,139.99,7.1433]
[1723849210546,13.73,140.02,140.0,1.42842301]
[1723849211930,13.73,140.02,140.0,8.57122301]
[1723849212139,13.73,140.02,140.0,7.1428]
[1723849214461,13.73,140.03,140.01,7.1423]
[1723849214671,7.47257597,140.04,140.0,1.428322]
[1723849214957,15.17,140.09,140.0,1.428322]
[1723849214958,13.73,140.07,140.02,17.8542]
[1723849215165,7.1389,140.08,140.03,1.42796067]
[1723849215525,13.73,140.07,140.03,1.42796067]
[1723849216253,13.73,140.07,140.04,7.1407]
[1723849221067,14.60940955,140.1,140.05,8.56804051]
[1723849221234,13.73,140.08,140.05,7.1401]
[1723849221971,20.8699,140.06,140.01,24.9977]
[1723849222176,54.92,140.07,140.0,7.1427]
[1723849222177,13.73,140.03,140.0,7.1427]
[1723849222355,13.73,140.01,139.99,7.143]
[1723849222671,13.73,140.01,139.98,41.5437]
[1723849222875,13.73,140.01,139.99,7.1433]
[1723849225751,13.73,140.01,139.98,25.0026]
[1723849225954,7.47606813,140.05,139.95,25.0082]
[1723849225955,13.73,139.99,139.95,25.0082]
[1723849226154,13.73,139.97,139.95,25.0082]
[1723849226861,13.73,139.97,139.96,7.1448]
[1723849227185,13.73,139.97,139.94,7.1457]
[1723849231095,85.0077,140.04,139.95,7.1451]
[1723849231096,7.143,140.0,139.95,7.1451]
[1723849231299,13.73,139.99,139.94,17.8641]
[1723849232073,13.73,139.99,139.96,7.1447]
[1723849239295,13.73,139.97,139.91,17.8676]
[1723849239501,13.73,139.93,139.91,25.0147]
[1723849246238,13.73,139.94,139.91,25.0148]
[1723849247132,13.73,139.92,139.91,17.8676]
[1723849247302,13.73,139.92,139.88,25.02]
[1723849247510,13.73,139.9,139.88,25.02]
[1723849254038,13.73,139.9,139.88,17.8714]
[1723849255122,13.73,139.9,139.88,25.0203]
[1723849255323,13.73,139.92,139.88,25.0203]
[1723849257325,20.8769,139.92,139.88,25.0203]
[1723849265345,13.73,139.92,139.89,7.1483]
[1723849265541,7.47116975,139.94,139.9,19.29868845]
[1723849265741,21.20116975,139.94,139.9,19.29868845]
[1723849265937,21.20116975,139.94,139.9,26.44638845]
[1723849266140,21.20116975,139.94,139.9,25.017]
[1723849268172,7.47116975,139.94,139.9,17.8693]
[1723849268359,7.47116975,139.94,139.91,7.1473]
[1723849268360,21.20116975,139.94,139.91,7.1473]
[1723849269072,7.47116975,139.94,139.91,7.1473]
[1723849269274,13.73,139.93,139.91,7.1473]
[1723849269971,14.61706975,139.94,139.9,17.8693]
[1723849270274,13.73,139.92,139.9,17.8693]
[1723849270441,14.61706975,139.94,139.9,17.8693]
[1723849270646,13.73,139.92,139.9,17.8693]
[1723849271161,13.73,139.92,139.85,6.4502]
[1723849271368,13.73,139.92,139.86,62.8741]
[1723849271555,13.73,139.92,139.88,7.1485]
[1723849273270,13.73,139.92,139.89,7.1484]
[1723849275665,7.1465,139.93,139.89,7.1484]
[1723849275874,20.8765,139.93,139.89,7.1484]
[1723849279683,13.73,139.91,139.88,17.8721]
[1723849279883,13.73,139.89,139.88,17.8721]
[1723849280774,13.73,139.89,139.88,25.021]
[1723849282081,13.73,139.91,139.88,25.021]
[1723849282884,7.1471,139.92,139.88,25.021]
[1723849283182,13.73,139.91,139.88,17.8721]
[1723849283772,13.73,139.91,139.88,25.0209]
[1723849284472,20.8775,139.91,139.88,17.8721]
[1723849287662,7.1493,139.88,139.83,7.1514]
[1723849287968,13.73,139.86,139.83,21.4798267]
[1723849288170,13.73,139.86,139.83,7.1513]
[1723849289370,13.73,139.84,139.82,25.0312]
[1723849290899,13.73,139.84,139.81,7.1524]
[1723849291095,54.92,139.86,139.81,7.1524]
[1723849291096,13.73,139.82,139.81,7.1524]
[1723849291867,54.92,139.86,139.81,7.1524]
[1723849291868,7.15,139.86,139.81,7.1524]
[1723849292094,13.73,139.83,139.82,7.1519]
[1723849292309,13.73,139.83,139.81,7.1524]
[1723849297213,13.73,139.83,139.8,0.8784292]
[1723849297372,13.73,139.81,139.8,0.8784292]
[1723849302876,13.73,139.81,139.8,8.0314292]
[1723849314695,21.19968822,139.84,139.81,7.1525]
[1723849314900,7.1501,139.86,139.81,7.1525]
[1723849315205,13.73,139.84,139.81,7.1525]
[1723849319403,7.1505,139.85,139.81,7.1525]
[1723849319737,13.73,139.83,139.81,7.1525]
[1723849324432,23.1473,139.82,139.69,58.7239]
[1723849324655,13.73,139.76,139.73,17.8906]
[1723849324937,13.73,139.76,139.74,7.156]
[1723849325110,13.73,139.76,139.73,25.0471]
[1723849325297,13.73,139.74,139.73,17.8906]
[1723849326424,13.73,139.74,139.73,25.0472]
[1723849328062,7.47096291,139.79,139.75,17.8886]
[1723849328252,13.73,139.78,139.76,7.1547]
[1723849329182,13.73,139.78,139.77,7.1546]
[1723849331379,7.47049096,139.8,139.79,7.1535]
[1723849331764,13.73,139.81,139.8,25.0356]
[1723849338267,13.73,139.83,139.82,7.1515]
[1723849341960,13.73,139.83,139.8,17.8826]
[1723849341961,13.73,139.83,139.81,7.1524]